bitfinex-derivatives/quotes_BTCF0:USTF0_20241130
["timestamp","ask_amount","ask_price","bid_price","bid_amount"]
[1732935510205,0.001,96679.0,96678.0,0.23744957]
[1732935511602,0.051697,96682.0,96678.0,0.23744957]
[1732935511603,0.001,96681.0,96678.0,0.23744957]
[1732935511794,0.001,96681.0,96679.0,0.051699]
[1732935512192,0.051697,96682.0,96679.0,0.051699]
[1732935512396,0.051697,96682.0,96680.0,0.05493207]
[1732935512598,0.051697,96682.0,96681.0,0.00323407]
[1732935514501,0.053697,96682.0,96681.0,0.00323407]
[1732935515109,0.054697,96682.0,96681.0,0.00323407]
[1732935516506,0.054697,96682.0,96680.0,0.051698]
[1732935516707,0.054697,96682.0,96681.0,0.00323407]
[1732935518306,0.051697,96682.0,96681.0,0.00323407]
[1732935518513,0.053697,96682.0,96681.0,0.00323407]
[1732935519010,0.054697,96682.0,96681.0,0.00323407]
[1732935521212,0.003,96682.0,96681.0,0.00323407]
[1732935521408,0.003,96682.0,96681.0,0.05493207]
[1732935521607,0.003,96682.0,96681.0,0.06010658]
[1732935521802,0.003,96682.0,96681.0,0.24585715]
[1732935522712,0.003,96682.0,96681.0,0.06010658]
[1732935523708,0.003,96682.0,96681.0,0.05493207]
[1732935524611,0.003,96682.0,96681.0,0.06010659]
[1732935525301,0.003,96682.0,96681.0,0.05493207]
[1732935527415,0.003,96682.0,96681.0,0.051698]
[1732935533509,0.003,96682.0,96670.0,0.3608]
[1732935533711,0.3608,96675.0,96661.0,0.051709]
[1732935533914,0.3608,96675.0,96659.0,0.03475176]
[1732935533915,0.05389002,96673.0,96667.0,0.18622425]
[1732935534114,0.05389002,96673.0,96659.0,0.03475176]
[1732935534115,0.22776,96674.0,96664.0,0.18622425]
[1732935534321,0.22776,96674.0,96660.0,0.25148296]
[1732935534322,0.051707,96664.0,96660.0,0.25148296]
[1732935534518,0.051707,96664.0,96661.0,0.00323476]
[1732935534519,0.183667,96664.0,96661.0,0.00323476]
[1732935534718,0.183667,96664.0,96662.0,0.05494276]
[1732935534911,0.183667,96664.0,96663.0,0.00323476]
[1732935536321,0.13196,96664.0,96663.0,0.05494176]
[1732935537629,0.13196,96664.0,96663.0,0.06094176]
[1732935538046,0.13196,96664.0,96663.0,0.057707]
[1732935538325,0.13196,96664.0,96663.0,0.06294175]
[1732935542529,0.13196,96664.0,96663.0,0.059707]
[1732935547734,0.01230559,96665.0,96664.0,0.051707]
[1732935547941,0.49276,96666.0,96665.0,0.051706]
[1732935548130,0.544466,96666.0,96665.0,0.051706]
[1732935549635,0.544466,96666.0,96665.0,0.05494064]
[1732935550433,0.544466,96666.0,96665.0,0.05994064]
[1732935550632,0.544466,96666.0,96665.0,0.01023464]
[1732935551638,0.544466,96666.0,96665.0,0.007]
[1732935552138,0.544466,96666.0,96665.0,0.01023486]
[1732935552339,0.544466,96666.0,96665.0,0.007]
[1732935552541,0.544466,96666.0,96665.0,0.01023487]
[1732935552932,0.544466,96666.0,96665.0,0.007]
[1732935553128,0.49276,96666.0,96665.0,0.01023487]
[1732935553337,0.49276,96666.0,96665.0,0.06194087]
[1732935555142,0.3608,96666.0,96665.0,0.06194087]
[1732935555340,0.49276,96666.0,96665.0,0.06194087]
[1732935557232,0.544466,96666.0,96665.0,0.06194087]
[1732935557635,0.183666,96666.0,96665.0,0.058706]
[1732935559155,0.183546,96666.0,96665.0,0.06194065]
[1732935561541,0.183546,96666.0,96665.0,0.06194058]
[1732935563446,0.183546,96666.0,96665.0,0.24816483]
[1732935563643,0.183546,96666.0,96665.0,0.25334017]
[1732935563843,0.183546,96666.0,96665.0,0.06194058]
[1732935564052,0.183546,96666.0,96665.0,0.06711592]
[1732935564754,0.183546,96666.0,96665.0,0.07358509]
[1732935564969,0.13184,96666.0,96665.0,0.07358509]
[1732935566849,0.412506,96667.0,96665.0,0.07358509]
[1732935566850,0.3608,96667.0,96665.0,0.02187909]
[1732935567053,0.0637,96674.0,96665.0,0.02187909]
[1732935567054,0.13184,96680.0,96666.0,0.01487909]
[1732935567351,0.13184,96685.0,96684.0,0.051696]
[1732935567547,0.13184,96685.0,96684.0,0.06657368]
[1732935568049,0.051693,96691.0,96684.0,0.01487768]
[1732935568254,0.01392536,96688.0,96687.0,0.051695]
[1732935568554,0.00155202,96688.0,96687.0,0.0601027]
[1732935568851,0.00155202,96688.0,96687.0,0.06657012]
[1732935569842,0.00155202,96688.0,96687.0,0.42737012]
[1732935570050,0.13196078,96696.0,96687.0,0.42737012]
[1732935570251,0.13196078,96696.0,96695.0,0.05169]
[1732935570556,0.13196078,96696.0,96695.0,0.0600977]
[1732935570748,0.00012078,96696.0,96695.0,0.0600977]
[1732935571950,0.00012078,96696.0,96695.0,0.06009693]
[1732935572651,0.00012078,96696.0,96695.0,0.05492343]
[1732935579860,0.00012078,96696.0,96695.0,0.05169]
[1732935584766,0.05181078,96696.0,96695.0,0.05169]
[1732935586363,0.00012078,96696.0,96695.0,0.05169]
[1732935587665,0.00012078,96696.0,96680.0,0.05389002]
[1732935587666,0.00012078,96696.0,96694.0,0.051691]
[1732935587858,0.00012078,96696.0,96695.0,0.00323376]
[1732935589481,0.05181078,96696.0,96695.0,0.00323376]
[1732935590962,0.41261078,96696.0,96695.0,0.00323376]
[1732935593369,0.05181078,96696.0,96695.0,0.00323376]
[1732935593570,0.41261078,96696.0,96695.0,0.00323376]
[1732935593770,0.41261078,96696.0,96695.0,0.00840778]
[1732935594262,0.41261078,96696.0,96694.0,0.051691]
[1732935594464,0.3608,96695.0,96694.0,0.051691]
[1732935596064,0.3608,96695.0,96694.0,0.05492476]
[1732935596363,0.3618,96695.0,96694.0,0.05492476]
[1732935597275,0.3618,96695.0,96694.0,0.051691]
[1732935597469,0.3618,96695.0,96694.0,0.05492476]
[1732935597771,0.3618,96695.0,96694.0,0.05592476]
[1732935600276,0.41349,96695.0,96694.0,0.001]
[1732935601271,0.051692,96693.0,96692.0,0.051692]
[1732935601479,0.051692,96693.0,96692.0,0.05492577]
[1732935602370,0.051692,96693.0,96692.0,0.06009979]
[1732935602571,0.052692,96693.0,96692.0,0.06109979]
[1732935603581,0.001,96693.0,96692.0,0.06109979]
[1732935603771,0.052691,96693.0,96692.0,0.00940779]
[1732935604168,0.0517,96677.0,96673.0,0.051702]
[1732935604374,0.13168,96676.0,96674.0,0.00840903]
[1732935604572,0.183381,96676.0,96675.0,0.06011003]
[1732935605170,0.183381,96676.0,96675.0,0.00840903]
[1732935606679,0.183381,96676.0,96675.0,0.05493539]
[1732935606878,0.183381,96676.0,96675.0,0.05593539]
[1732935607187,0.183381,96676.0,96675.0,0.00423439]
[1732935612177,0.19543274,96676.0,96675.0,0.00423439]
[1732935612886,0.55623274,96676.0,96675.0,0.00423439]
[1732935613392,0.55623274,96676.0,96675.0,0.00423446]
[1732935615579,0.37285174,96676.0,96675.0,0.05593546]
[1732935615775,0.37285174,96676.0,96675.0,0.00423446]
[1732935616479,0.37285174,96676.0,96675.0,0.00940957]
[1732935617284,0.42455274,96676.0,96675.0,0.00423446]
[1732935618986,0.42455274,96676.0,96675.0,0.001]
[1732935620692,0.051704,96671.0,96650.0,0.051714]
[1732935620992,0.3608,96659.0,96651.0,0.00841018]
[1732935621186,0.1316,96658.0,96652.0,0.00323468]
[1732935621491,0.1316,96658.0,96642.0,0.0626]
[1732935621492,0.051717,96645.0,96642.0,0.0626]
[1732935621694,0.183315,96649.0,96643.0,0.00323528]
[1732935621878,0.051717,96645.0,96644.0,0.00323528]
[1732935623186,9.424e-05,96648.0,96644.0,0.008]
[1732935623387,0.051717,96645.0,96644.0,0.008]
[1732935623590,0.051717,96645.0,96644.0,0.012]
[1732935623985,0.098227,96645.0,96644.0,0.012]
[1732935625192,0.098227,96645.0,96644.0,0.00723555]
[1732935625390,0.098227,96645.0,96644.0,0.01523555]
[1732935627394,0.459027,96645.0,96644.0,0.01523555]
[1732935628588,0.493537,96645.0,96644.0,0.01523555]
[1732935629490,0.493537,96645.0,96644.0,0.02041242]
[1732935629988,0.44182,96645.0,96644.0,0.02041242]
[1732935630188,0.57346,96645.0,96644.0,0.07213042]
[1732935630392,0.57346,96645.0,96644.0,0.07860111]
[1732935632695,0.21266,96645.0,96644.0,0.07860111]
[1732935633081,0.21266,96645.0,96644.0,0.07213042]
[1732935633990,0.08102,96645.0,96644.0,0.07860091]
[1732935637195,0.141007,96645.0,96644.0,0.02688291]
[1732935637497,0.141007,96645.0,96644.0,0.07860091]
[1732935638201,0.146577,96645.0,96644.0,0.0785998]
[1732935641487,0.146577,96645.0,96644.0,0.063718]
[1732935641693,0.146577,96645.0,96644.0,0.07950968]
[1732935642094,0.146577,96645.0,96644.0,0.07859992]
[1732935642894,0.09486,96645.0,96644.0,0.07859992]
[1732935643597,0.2265,96645.0,96644.0,0.07859992]
[1732935645108,0.09486,96645.0,96644.0,0.07859992]
[1732935645303,0.09486,96645.0,96644.0,0.07859906]
[1732935646596,0.09486,96645.0,96644.0,0.32604598]
[1732935646804,0.10313,96645.0,96644.0,0.32604598]
[1732935647105,0.10313,96645.0,96644.0,0.68684598]
[1732935647496,0.10313,96645.0,96644.0,0.43939906]
[1732935649204,0.154847,96645.0,96644.0,0.68732215]
[1732935649401,0.154847,96645.0,96644.0,0.02041103]
[1732935652408,0.154847,96645.0,96644.0,0.02041245]
[1732935653401,0.515647,96645.0,96644.0,0.02041245]
[1732935655203,0.515647,96645.0,96644.0,0.02688361]
[1732935657209,0.515647,96645.0,96644.0,0.02041245]
[1732935658007,0.515647,96645.0,96644.0,0.012]
[1732935658607,0.515647,96645.0,96644.0,0.02041254]
[1732935658817,0.515647,96645.0,96644.0,0.012]
[1732935659023,0.515647,96645.0,96644.0,0.02041254]
[1732935659323,0.515647,96645.0,96644.0,0.012]
[1732935659618,0.515647,96645.0,96644.0,0.008]
[1732935659918,0.05172,96641.0,96639.0,0.05172]
[1732935660605,0.05172,96640.0,96639.0,0.05172]
[1732935660810,0.051721,96638.0,96636.0,0.18594924]
[1732935661015,0.051721,96638.0,96637.0,0.18594924]
[1732935661211,0.051721,96638.0,96631.0,0.0626]
[1732935661416,0.051721,96637.0,96635.0,0.051722]
[1732935661917,0.08675,96636.0,96635.0,0.051722]
[1732935664334,0.08775,96636.0,96635.0,0.051722]
[1732935664535,0.08775,96636.0,96635.0,0.06013457]
[1732935666528,0.08775,96636.0,96635.0,0.06660578]
[1732935668631,0.10024988,96636.0,96635.0,0.06660578]
[1732935669124,0.10851988,96636.0,96635.0,0.06660578]
[1732935671043,0.10851988,96636.0,96635.0,0.06013457]
[1732935671342,0.24007988,96636.0,96635.0,0.06013457]
[1732935671641,0.10851988,96636.0,96635.0,0.06013457]
[1732935671842,0.22758,96636.0,96635.0,0.06013457]
[1732935672137,0.09602,96636.0,96635.0,0.31452864]
[1732935672333,0.09602,96636.0,96635.0,0.06660555]
[1732935672528,0.10429,96636.0,96635.0,0.06660555]
[1732935673141,0.13156,96642.0,96635.0,0.06751706]
[1732935673337,0.13156,96642.0,96641.0,0.412519]
[1732935673640,0.13156,96642.0,96641.0,0.42740073]
[1732935674741,0.002,96642.0,96641.0,0.42740073]
[1732935675131,0.01202751,96653.0,96647.0,0.051716]
[1732935675132,0.14358751,96653.0,96647.0,0.051716]
[1732935675333,0.14358751,96653.0,96647.0,0.06659773]
[1732935676041,0.00064,96652.0,96647.0,0.06659773]
[1732935676848,0.00827,96649.0,96647.0,0.051716]
[1732935677050,0.00827,96649.0,96647.0,0.06659531]
[1732935678348,0.00827,96649.0,96647.0,0.06759531]
[1732935678542,0.00827,96649.0,96647.0,0.07059531]
[1732935679441,0.00827,96649.0,96647.0,0.43139531]
[1732935680143,0.00827,96649.0,96647.0,0.43039531]
[1732935680347,0.00827,96649.0,96647.0,0.43139531]
[1732935682035,0.00827,96649.0,96647.0,0.42839531]
[1732935682249,0.00827,96649.0,96647.0,0.42939531]
[1732935687451,0.00827,96649.0,96647.0,0.414516]
[1732935687649,0.00827,96649.0,96647.0,0.42939541]
[1732935688745,0.00827,96649.0,96647.0,0.67085498]
[1732935690448,0.00827,96649.0,96647.0,0.67185498]
[1732935691146,0.00827,96649.0,96647.0,0.66985498]
[1732935691346,0.00827,96649.0,96647.0,0.43139541]
[1732935691547,0.00827,96649.0,96647.0,0.4249261]
[1732935692144,0.00827,96649.0,96647.0,0.43139541]
[1732935692354,0.00066,96651.0,96650.0,0.051714]
[1732935692553,0.00066,96651.0,96650.0,0.0601241]
[1732935692852,0.0302,96662.0,96661.0,0.051709]
[1732935693054,0.0302,96662.0,96661.0,0.06011909]
[1732935693243,0.0302,96662.0,96661.0,0.06011899]
[1732935693550,0.0302,96662.0,96661.0,0.06658822]
[1732935693551,0.00010255,96662.0,96661.0,0.06658822]
[1732935694148,0.00010255,96662.0,96661.0,0.42738822]
[1732935694347,0.00010255,96662.0,96661.0,0.42829792]
[1732935694555,0.00010255,96662.0,96661.0,0.42738822]
[1732935695149,0.00126,96663.0,96662.0,0.051708]
[1732935695454,0.00067,96665.0,96662.0,0.06658722]
[1732935695750,0.00067,96665.0,96664.0,0.051707]
[1732935695952,0.00067,96665.0,96664.0,0.06658622]
[1732935696146,2e-07,96665.0,96664.0,0.06658622]
[1732935696342,2e-07,96665.0,96664.0,0.06749524]
[1732935696546,2e-07,96665.0,96664.0,0.06658622]
[1732935697156,2e-07,96665.0,96664.0,0.06749537]
[1732935697356,2e-07,96665.0,96664.0,0.06658622]
[1732935697560,2e-07,96665.0,96664.0,0.06749537]
[1732935698053,2e-07,96665.0,96664.0,0.06658622]
[1732935701563,2e-07,96665.0,96664.0,0.06658273]
[1732935701759,2e-07,96665.0,96664.0,0.78818273]
[1732935702253,2e-07,96665.0,96664.0,0.06658273]
[1732935702457,2e-07,96665.0,96664.0,0.78818273]
[1732935703561,2e-07,96665.0,96664.0,0.773307]
[1732935704656,2e-07,96665.0,96664.0,0.78818271]
[1732935705157,2e-07,96665.0,96664.0,0.91958271]
[1732935705561,2e-07,96665.0,96664.0,0.78818271]
[1732935706061,2e-07,96665.0,96664.0,0.79018271]
[1732935706258,2e-07,96665.0,96664.0,1.03763261]
[1732935706459,2e-07,96665.0,96664.0,1.03116491]
[1732935706664,2e-07,96665.0,96664.0,1.02916491]
[1732935706851,2e-07,96665.0,96664.0,1.03116491]
[1732935707048,2e-07,96665.0,96664.0,0.78971501]
[1732935707756,2e-07,96665.0,96664.0,0.78371501]
[1732935707953,2e-07,96665.0,96664.0,0.42291501]
[1732935708450,2e-07,96665.0,96664.0,0.42738303]
[1732935708960,2e-07,96665.0,96664.0,0.4273834]
[1732935710368,2e-07,96665.0,96664.0,0.0665834]
[1732935710561,2e-07,96665.0,96664.0,0.4273834]
[1732935710967,2e-07,96665.0,96664.0,0.4283834]
[1732935712665,2e-07,96665.0,96664.0,0.42838342]
[1732935712858,0.0326,96677.0,96664.0,0.429293]
[1732935713057,0.0326,96677.0,96676.0,0.412501]
[1732935713258,0.0326,96677.0,96676.0,0.42737742]
[1732935713962,0.03272087,96677.0,96676.0,0.42737742]
[1732935717064,0.03272087,96677.0,96676.0,0.06657742]
[1732935717265,0.03272087,96677.0,96676.0,0.42737742]
[1732935719670,0.03272087,96677.0,96676.0,0.412501]
[1732935719964,0.03272087,96677.0,96676.0,0.41573493]
[1732935720168,0.03272087,96677.0,96676.0,0.42737707]
[1732935720370,0.03272087,96677.0,96676.0,0.61295532]
[1732935720875,0.00012087,96677.0,96676.0,0.42737707]
[1732935721369,0.00012087,96677.0,96676.0,0.67482697]
[1732935722359,0.00012087,96677.0,96676.0,0.42737707]
[1732935722763,0.00012087,96677.0,96676.0,0.412501]
[1732935722966,0.00012087,96677.0,96676.0,0.4273765]
[1732935723164,0.00012087,96677.0,96676.0,0.73668888]
[1732935723372,0.00012087,96677.0,96676.0,0.90014967]
[1732935723568,0.0607,96688.0,96687.0,0.051695]
[1732935723777,0.0607,96688.0,96687.0,0.42090289]
[1732935724677,0.06079599,96688.0,96687.0,0.66888598]
[1732935724866,0.06079599,96688.0,96687.0,0.42090289]
[1732935726671,0.06079599,96688.0,96687.0,0.4157288]
[1732935729477,0.06079599,96688.0,96687.0,0.41572859]
[1732935730667,0.06079599,96688.0,96687.0,0.42090233]
[1732935733773,0.06079599,96688.0,96687.0,0.42736951]
[1732935736574,0.06079599,96688.0,96687.0,0.42736956]
[1732935738774,0.06079599,96688.0,96687.0,0.4157286]
[1732935743183,0.06079599,96688.0,96687.0,0.60167122]
[1732935743384,0.06079599,96688.0,96687.0,0.60684498]
[1732935745788,0.06079599,96688.0,96687.0,0.61331218]
[1732935745977,0.06079599,96688.0,96687.0,0.42736956]
[1732935746178,0.06079599,96688.0,96687.0,0.6133507]
[1732935746380,0.06079599,96688.0,96687.0,0.42736956]
[1732935747792,0.06079599,96688.0,96687.0,0.61338187]
[1732935748085,0.06079599,96688.0,96687.0,0.42736956]
[1732935748283,0.06079599,96688.0,96687.0,0.61338187]
[1732935749397,9.599e-05,96688.0,96687.0,0.42736956]
[1732935750986,9.599e-05,96688.0,96687.0,0.61341918]
[1732935751187,9.599e-05,96688.0,96687.0,0.42736956]
[1732935751785,9.599e-05,96688.0,96687.0,0.42828145]
[1732935752789,9.599e-05,96688.0,96687.0,0.42090236]
[1732935752981,0.661312,96688.0,96687.0,0.0032336]
[1732935753180,0.661312,96688.0,96672.0,0.051702]
[1732935753181,0.051701,96676.0,96672.0,0.051702]
[1732935753391,0.051702,96674.0,96673.0,0.00646765]
[1732935753589,0.051702,96674.0,96671.0,0.051703]
[1732935753590,0.13116,96674.0,96671.0,0.051703]
[1732935753898,0.051702,96673.0,96671.0,0.051703]
[1732935754093,0.051702,96673.0,96660.0,0.05389002]
[1732935754094,0.13116,96674.0,96673.0,0.051702]
[1732935755293,0.13116,96674.0,96673.0,0.056702]
[1732935755685,0.13157601,96674.0,96650.0,0.18604962]
[1732935755888,0.13157601,96674.0,96656.0,0.0015516]
[1732935755889,0.412511,96657.0,96656.0,0.0015516]
[1732935756086,0.543671,96657.0,96656.0,0.0015516]
[1732935757194,0.49196,96657.0,96656.0,0.0015516]
[1732935757491,0.05389002,96670.0,96656.0,0.0025516]
[1732935757492,0.13116,96663.0,96656.0,0.0025516]
[1732935757691,0.3608,96667.0,96662.0,0.051708]
[1732935757882,0.3608,96667.0,96663.0,0.0325]
[1732935758083,0.3608,96667.0,96664.0,0.051707]
[1732935758285,0.49196,96667.0,96664.0,0.051707]
[1732935759193,0.49196,96667.0,96663.0,0.0325]
[1732935759194,0.49396,96667.0,96665.0,0.051706]
[1732935759394,0.3628,96667.0,96665.0,0.051706]
[1732935759595,0.1312,96666.0,96665.0,0.051706]
[1732935760286,0.003,96667.0,96665.0,0.051706]
[1732935760595,0.002,96667.0,96665.0,0.051706]
[1732935760798,0.001,96666.0,96665.0,0.05261841]
[1732935760994,0.001,96666.0,96665.0,0.05908688]
[1732935761899,0.001,96666.0,96665.0,0.05817447]
[1732935762398,0.003,96666.0,96665.0,0.05817447]
[1732935762701,0.002,96666.0,96665.0,0.0590839]
[1732935762894,0.1312,96677.0,96665.0,0.00646847]
[1732935763086,0.1312,96677.0,96676.0,0.051701]
[1732935763299,0.1312,96677.0,96676.0,0.06334426]
[1732935764890,0.1312,96677.0,96676.0,0.05687579]
[1732935765095,0.1312,96677.0,96676.0,0.06011003]
[1732935765297,0.1352,96677.0,96676.0,0.06011003]
[1732935766504,0.00088001,96680.0,96679.0,0.051699]
[1732935766691,0.13129599,96688.0,96679.0,0.06657629]
[1732935766888,0.13129599,96688.0,96687.0,0.051695]
[1732935767092,0.13129599,96688.0,96687.0,0.06657229]
[1732935767298,9.599e-05,96688.0,96687.0,0.06657229]
[1732935767904,9.599e-05,96688.0,96687.0,0.06010403]
[1732935768204,9.599e-05,96688.0,96687.0,0.06010258]
[1732935768603,0.05178999,96688.0,96687.0,0.06010258]
[1732935768803,0.05378999,96688.0,96687.0,0.06010258]
[1732935769199,0.05178999,96688.0,96687.0,0.06010258]
[1732935769502,0.00409599,96688.0,96687.0,0.06010258]
[1732935769895,0.00409599,96688.0,96687.0,0.06656998]
[1732935771504,0.13521599,96688.0,96687.0,0.06656998]
[1732935772902,0.00409599,96688.0,96687.0,0.01666998]
[1732935773102,0.00409599,96688.0,96667.0,0.00155142]
[1732935773103,0.051703,96672.0,96669.0,0.051704]
[1732935773303,0.3608,96670.0,96662.0,0.0329]
[1732935773496,0.13112,96669.0,96662.0,0.0329]
[1732935773697,0.051707,96664.0,96662.0,0.0329]
[1732935773903,0.051708,96663.0,96662.0,0.0329]
[1732935775501,0.13112,96669.0,96659.0,0.051709]
[1732935775806,0.13112,96669.0,96641.0,0.18604962]
[1732935775807,0.3608,96661.0,96645.0,0.051717]
[1732935776003,0.3608,96661.0,96646.0,0.0303]
[1732935776004,0.3608,96653.0,96646.0,0.0303]
[1732935776204,0.051716,96647.0,96646.0,0.0303]
[1732935776702,0.051716,96647.0,96646.0,0.082017]
[1732935778600,0.051716,96647.0,96646.0,0.085017]
[1732935779009,0.052716,96647.0,96646.0,0.091017]
[1732935779200,0.052716,96647.0,96646.0,0.0393]
[1732935780204,0.001,96647.0,96646.0,0.0393]
[1732935780506,0.001,96647.0,96646.0,0.091017]
[1732935781008,0.051714,96652.0,96651.0,0.051714]
[1732935781612,0.36168001,96653.0,96652.0,0.051713]
[1732935781821,0.3608,96653.0,96652.0,0.051713]
[1732935782807,0.051711,96656.0,96655.0,0.051712]
[1732935783207,0.051705,96668.0,96660.0,0.051709]
[1732935783403,0.13112,96665.0,96660.0,0.0633544]
[1732935783618,0.13112,96665.0,96660.0,0.051709]
[1732935783910,0.13112,96665.0,96660.0,0.06335356]
[1732935784511,0.051707,96665.0,96660.0,0.06335356]
[1732935784815,0.051707,96665.0,96664.0,0.051707]
[1732935785012,0.051707,96665.0,96664.0,0.06011694]
[1732935786007,0.412507,96665.0,96664.0,0.00840994]
[1732935786210,0.414507,96665.0,96664.0,0.00840994]
[1732935787511,0.414507,96665.0,96664.0,0.00323458]
[1732935787719,0.416507,96665.0,96664.0,0.00323458]
[1732935788009,0.416507,96665.0,96649.0,0.051715]
[1732935788010,0.051714,96650.0,96649.0,0.051715]
[1732935788216,0.543634,96650.0,96649.0,0.06012644]
[1732935789104,0.543634,96650.0,96649.0,0.06212644]
[1732935789419,0.543634,96650.0,96649.0,0.06712644]
[1732935791011,0.543634,96650.0,96649.0,0.058715]
[1732935792411,0.49192,96650.0,96649.0,0.058715]
[1732935793204,0.49192,96650.0,96649.0,0.06195002]
[1732935793410,0.49192,96650.0,96649.0,0.058715]
[1732935794120,0.3608,96650.0,96649.0,0.058715]
[1732935794819,0.182832,96655.0,96654.0,0.051712]
[1732935795316,0.13112,96655.0,96654.0,0.051712]
[1732935795706,0.05171,96659.0,96658.0,0.05171]
[1732935796013,0.13112,96659.0,96658.0,0.05171]
[1732935796718,0.13112,96659.0,96658.0,0.05494461]
[1732935796921,0.13112,96661.0,96659.0,0.05171]
[1732935797129,0.412506,96665.0,96664.0,0.051707]
[1732935797319,0.543626,96665.0,96664.0,0.051707]
[1732935798119,0.543626,96665.0,96664.0,0.05494159]
[1732935798626,0.547626,96665.0,96664.0,0.05494159]
[1732935799522,0.416506,96665.0,96664.0,0.05494159]
[1732935800114,0.004,96665.0,96664.0,0.06011691]
[1732935801026,0.00155227,96667.0,96666.0,0.051706]
[1732935801211,0.00155227,96667.0,96666.0,0.06658445]
[1732935801410,0.01212586,96676.0,96666.0,0.06658445]
[1732935801615,0.04853298,96704.0,96679.0,0.051699]
[1732935801616,0.13108,96680.0,96679.0,0.051699]
[1732935801821,0.13108,96680.0,96679.0,0.05493359]
[1732935802213,0.13108,96680.0,96679.0,0.06010817]
[1732935802722,0.49953694,96683.0,96682.0,0.051697]
[1732935802920,0.49953694,96683.0,96682.0,0.05493159]
[1732935802921,0.62981693,96683.0,96682.0,0.05493159]
[1732935803221,0.617577,96683.0,96682.0,0.06010616]
[1732935803618,0.56588,96683.0,96682.0,0.06010616]
[1732935803822,0.412495,96687.0,96686.0,0.051695]
[1732935804025,0.543575,96687.0,96686.0,0.06010416]
[1732935804223,0.49188,96687.0,96686.0,0.06010416]
[1732935804427,0.3608,96687.0,96686.0,0.06010416]
[1732935804622,0.49188,96687.0,96686.0,0.06010416]
[1732935805624,0.49588,96687.0,96686.0,0.06010294]
[1732935806127,0.49588,96687.0,96686.0,0.05492882]
[1732935806921,0.3648,96687.0,96686.0,0.05492882]
[1732935807722,0.3658,96687.0,96686.0,0.05492882]
[1732935808123,0.3618,96687.0,96686.0,0.05492882]
[1732935808333,0.3668,96687.0,96686.0,0.05492882]
[1732935808830,0.006,96687.0,96686.0,0.05492882]
[1732935812333,0.006,96687.0,96671.0,0.051703]
[1732935812334,0.051705,96672.0,96671.0,0.051703]
[1732935812530,0.543585,96672.0,96671.0,0.051703]
[1732935812931,0.051705,96669.0,96666.0,0.05325755]
[1732935813123,0.49268001,96672.0,96666.0,0.00155155]
[1732935813325,0.051705,96667.0,96666.0,0.00155155]
[1732935813826,0.051703,96671.0,96668.0,0.051705]
[1732935814017,0.49268001,96672.0,96668.0,0.051705]
[1732935814222,0.00041601,96671.0,96650.0,0.54687809]
[1732935814427,0.00041601,96671.0,96650.0,0.051714]
[1732935814428,0.051714,96651.0,96650.0,0.051714]
[1732935815335,0.051714,96651.0,96646.0,0.0312]
[1732935815336,0.182794,96652.0,96646.0,0.0312]
[1732935815631,0.13108,96652.0,96651.0,0.051714]
[1732935816829,0.13108,96656.0,96655.0,0.051712]
[1732935817629,0.182791,96656.0,96655.0,0.051712]
[1732935818030,0.051711,96656.0,96655.0,0.053712]
[1732935818224,0.051711,96656.0,96655.0,0.054712]
[1732935821326,0.051711,96656.0,96655.0,0.06635741]
[1732935821835,0.13108,96659.0,96655.0,0.01464541]
[1732935822141,0.18279,96659.0,96658.0,0.05171]
[1732935822331,0.18279,96659.0,96658.0,0.06335541]
[1732935824227,0.18279,96659.0,96658.0,0.06112057]
[1732935824430,0.05171,96659.0,96658.0,0.06112057]
[1732935826636,0.05171,96659.0,96658.0,0.06112056]
[1732935828243,0.05171,96659.0,96658.0,0.05271]
[1732935828440,0.05171,96659.0,96658.0,0.05594483]
[1732935829131,0.36160001,96661.0,96660.0,0.051709]
[1732935829132,0.3608,96661.0,96660.0,0.051709]
[1732935829337,0.3608,96661.0,96660.0,0.05494383]
[1732935829642,0.051704,96670.0,96669.0,0.051704]
[1732935830937,0.43556001,96675.0,96672.0,0.051703]
[1732935831246,0.13184001,96675.0,96674.0,0.051702]
[1732935831430,0.13104,96675.0,96674.0,0.051702]
[1732935832138,0.00076618,96677.0,96676.0,0.051701]
[1732935832345,0.13180618,96677.0,96676.0,0.051701]
[1732935833740,0.00176618,96677.0,96676.0,0.051701]
[1732935833940,0.00576618,96677.0,96676.0,0.051701]
[1732935834142,0.00576618,96677.0,96676.0,0.05493508]
[1732935834335,0.00176618,96677.0,96676.0,0.05493508]
[1732935834644,0.00576618,96677.0,96676.0,0.05493508]
[1732935835641,0.00576618,96677.0,96676.0,0.41573508]
[1732935836235,0.00076618,96677.0,96676.0,0.42090922]
[1732935837041,0.00076618,96677.0,96676.0,0.42090888]
[1732935837438,0.00076618,96677.0,96676.0,0.60646697]
[1732935837642,0.00076618,96677.0,96676.0,0.42090888]
[1732935838146,0.00076618,96677.0,96676.0,0.62090888]
[1732935838533,0.00076618,96677.0,96676.0,0.80625774]
[1732935840446,0.00076618,96677.0,96676.0,0.80108365]
[1732935840751,0.00076618,96677.0,96676.0,0.80625771]
[1732935841836,0.00076618,96677.0,96676.0,0.62090885]
[1732935842844,0.00076618,96677.0,96676.0,0.612501]
[1732935843042,0.00076618,96677.0,96676.0,0.62090885]
[1732935843247,0.00076618,96677.0,96676.0,0.62090886]
[1732935843447,0.00076618,96677.0,96676.0,0.61573479]
[1732935843852,0.00076618,96677.0,96676.0,0.612501]
[1732935844450,0.00076618,96677.0,96676.0,0.61573479]
[1732935847453,0.00076618,96677.0,96676.0,0.6157348]
[1732935850453,0.00076618,96677.0,96676.0,0.62737657]
[1732935850852,0.00076618,96677.0,96676.0,0.62737659]
[1732935861663,0.00076618,96677.0,96676.0,0.62828722]
[1732935861975,0.00076618,96677.0,96676.0,0.62737659]
[1732935862164,9.599e-05,96688.0,96676.0,0.62737659]
[1732935862165,9.599e-05,96688.0,96687.0,0.051695]
[1732935862361,9.599e-05,96688.0,96687.0,0.06657059]
[1732935863665,0.00209599,96688.0,96687.0,0.06657059]
[1732935864567,0.00309599,96688.0,96687.0,0.06657059]
[1732935864867,0.00309599,96688.0,96687.0,0.31398138]
[1732935865066,0.00309599,96688.0,96687.0,0.31398055]
[1732935865365,0.00309599,96688.0,96687.0,0.06656976]
[1732935865567,0.00309599,96688.0,96687.0,0.30233943]